[Event "*** Titled Tuesday Blitz"]
[Site "Chess.com"]
[Date "2020.02.04"]
[Round "5"]
[White "Andrei_Belozerov"]
[Black "ShimanovAlex"]
[Result "1-0"]
[WhiteElo "2610"]
[BlackElo "2751"]
[TimeControl "180+2"]
[EndTime "10:09:23 PST"]
[Termination "Andrei_Belozerov won on time"]

1. e4 {[%clk 0:03:01.9]} 1... g6 {[%clk 0:02:56]} 2. d4 {[%clk 0:03:02.2]} 2...
Bg7 {[%clk 0:02:56.6]} 3. Nf3 {[%clk 0:03:02.7]} 3... d6 {[%clk 0:02:56.7]} 4.
Bc4 {[%clk 0:03:03.7]} 4... e6 {[%clk 0:02:56.9]} 5. Bb3 {[%clk 0:03:04.2]} 5...
Ne7 {[%clk 0:02:57.7]} 6. O-O {[%clk 0:03:04.6]} 6... b6 {[%clk 0:02:59.2]} 7.
Re1 {[%clk 0:03:04.7]} 7... Bb7 {[%clk 0:03:00.7]} 8. Nbd2 {[%clk 0:03:04.5]}
8... Nd7 {[%clk 0:03:01.6]} 9. c3 {[%clk 0:03:04.6]} 9... O-O {[%clk 0:03:00.2]}
10. Nf1 {[%clk 0:03:05.5]} 10... c5 {[%clk 0:02:46.3]} 11. Ng3 {[%clk
0:03:06.2]} 11... Rc8 {[%clk 0:02:37.9]} 12. Be3 {[%clk 0:03:05.6]} 12... b5
{[%clk 0:02:36.9]} 13. Qd2 {[%clk 0:02:56.2]} 13... Qc7 {[%clk 0:02:26.7]} 14.
Rad1 {[%clk 0:02:53.2]} 14... c4 {[%clk 0:02:16.1]} 15. Bc2 {[%clk 0:02:52.3]}
15... Nf6 {[%clk 0:02:11]} 16. Bh6 {[%clk 0:02:52.5]} 16... Kh8 {[%clk
0:01:47.4]} 17. Qg5 {[%clk 0:02:46.7]} 17... Bxh6 {[%clk 0:01:33]} 18. Qxh6
{[%clk 0:02:46.5]} 18... a6 {[%clk 0:01:18.3]} 19. Ng5 {[%clk 0:02:44.2]} 19...
Neg8 {[%clk 0:01:14.8]} 20. Qh4 {[%clk 0:02:40.6]} 20... e5 {[%clk 0:01:15.9]}
21. f4 {[%clk 0:02:37]} 21... Rce8 {[%clk 0:01:15.1]} 22. fxe5 {[%clk
0:02:33.9]} 22... dxe5 {[%clk 0:01:16.1]} 23. d5 {[%clk 0:02:32]} 23... Kg7
{[%clk 0:01:10.4]} 24. Rf1 {[%clk 0:02:30.6]} 24... h6 {[%clk 0:01:08.5]} 25.
Nf3 {[%clk 0:02:25.2]} 25... Bc8 {[%clk 0:01:04.4]} 26. Kh1 {[%clk 0:02:16.4]}
26... Ng4 {[%clk 0:01:01.3]} 27. Rde1 {[%clk 0:01:57.3]} 27... Qb6 {[%clk
0:01:00.1]} 28. h3 {[%clk 0:01:52]} 28... Ne3 {[%clk 0:00:54.5]} 29. Rf2 {[%clk
0:01:50.5]} 29... Nxc2 {[%clk 0:00:47.8]} 30. Rxc2 {[%clk 0:01:50.9]} 30... Qf6
{[%clk 0:00:49.4]} 31. Kg1 {[%clk 0:01:38.6]} 31... Qxh4 {[%clk 0:00:45.6]} 32.
Nxh4 {[%clk 0:01:39.5]} 32... Bd7 {[%clk 0:00:47.5]} 33. Rf2 {[%clk 0:01:38.4]}
33... Nf6 {[%clk 0:00:46.4]} 34. Ref1 {[%clk 0:01:34.2]} 34... Nh7 {[%clk
0:00:44.4]} 35. Nf3 {[%clk 0:01:31.2]} 35... f6 {[%clk 0:00:44.5]} 36. Ne2
{[%clk 0:01:25.3]} 36... Ng5 {[%clk 0:00:45.1]} 37. Nxg5 {[%clk 0:01:25.3]}
37... hxg5 {[%clk 0:00:47]} 38. g4 {[%clk 0:01:23.3]} 38... Rf7 {[%clk
0:00:47.1]} 39. Kg2 {[%clk 0:01:24.3]} 39... Ref8 {[%clk 0:00:47.7]} 40. Kg3
{[%clk 0:01:25.3]} 40... Rh8 {[%clk 0:00:46.9]} 41. Ng1 {[%clk 0:01:25]} 41...
Be8 {[%clk 0:00:42.5]} 42. Nf3 {[%clk 0:01:25.2]} 42... Rff8 {[%clk 0:00:41.8]}
43. Rd1 {[%clk 0:01:23.9]} 43... Bd7 {[%clk 0:00:42.1]} 44. Rdf1 {[%clk
0:01:15.2]} 44... Rb8 {[%clk 0:00:41.3]} 45. Nxe5 {[%clk 0:01:13.7]} 45... fxe5
{[%clk 0:00:34.8]} 46. Rf7+ {[%clk 0:01:14.1]} 46... Kh6 {[%clk 0:00:36.7]} 47.
Rxd7 {[%clk 0:01:15.2]} 47... b4 {[%clk 0:00:38.6]} 48. cxb4 {[%clk 0:01:10.9]}
48... Rxb4 {[%clk 0:00:38.9]} 49. Rf2 {[%clk 0:01:11.4]} 49... c3 {[%clk
0:00:39.9]} 50. bxc3 {[%clk 0:01:12.1]} 50... Rxe4 {[%clk 0:00:41.5]} 51. Re7
{[%clk 0:01:09.3]} 51... Rc8 {[%clk 0:00:39.4]} 52. Rf3 {[%clk 0:01:07]} 52...
Re2 {[%clk 0:00:32.5]} 53. d6 {[%clk 0:01:06.3]} 53... Rh8 {[%clk 0:00:04.3]}
54. d7 {[%clk 0:01:06.2]} 54... Rd2 {[%clk 0:00:04.4]} 55. c4 {[%clk 0:01:03.7]}
55... Rh7 {[%clk 0:00:02]} 56. Rff7 {[%clk 0:00:54]} 56... Rxf7 {[%clk
0:00:02.6]} 57. Rxf7 {[%clk 0:00:54.7]} 57... e4 {[%clk 0:00:04.5]} 58. c5
{[%clk 0:00:53.2]} 58... e3 {[%clk 0:00:05.6]} 59. c6 {[%clk 0:00:54.3]} 59...
Rd1 {[%clk 0:00:05.4]} 60. Re7 {[%clk 0:00:53.9]} 60... Rd3 {[%clk 0:00:04.5]}
61. Kf3 {[%clk 0:00:53.5]} 61... Rd4 {[%clk 0:00:02.1]} 62. Kxe3 {[%clk
0:00:53.1]} 1-0

[Event "*** Titled Tuesday Blitz"]
[Site "Chess.com"]
[Date "2020.02.04"]
[Round "5"]
[White "earling8018"]
[Black "BvsN"]
[Result "1/2-1/2"]
[WhiteElo "2058"]
[BlackElo "2336"]
[TimeControl "180+2"]
[EndTime "10:09:44 PST"]
[Termination "Game drawn - insufficient material"]

1. c4 {[%clk 0:03:01.9]} 1... e5 {[%clk 0:02:59.9]} 2. Nc3 {[%clk 0:03:03.2]}
2... Bb4 {[%clk 0:03:00]} 3. d3 {[%clk 0:02:46.1]} 3... Bxc3+ {[%clk 0:02:58.7]}
4. bxc3 {[%clk 0:02:46.7]} 4... Nc6 {[%clk 0:02:59.8]} 5. e4 {[%clk 0:02:47.7]}
5... d6 {[%clk 0:03:00.4]} 6. f4 {[%clk 0:02:44.4]} 6... f5 {[%clk 0:02:54.1]}
7. exf5 {[%clk 0:01:57]} 7... Bxf5 {[%clk 0:02:54.4]} 8. Nf3 {[%clk 0:01:51.6]}
8... Nge7 {[%clk 0:02:46.7]} 9. Be2 {[%clk 0:01:51.6]} 9... O-O {[%clk
0:02:47.5]} 10. O-O {[%clk 0:01:52.7]} 10... Ng6 {[%clk 0:02:41.1]} 11. fxe5
{[%clk 0:01:46]} 11... Ngxe5 {[%clk 0:02:40.1]} 12. d4 {[%clk 0:01:40.9]} 12...
Nxf3+ {[%clk 0:02:32.7]} 13. Bxf3 {[%clk 0:01:42]} 13... Qd7 {[%clk 0:02:22.1]}
14. Be3 {[%clk 0:01:23.7]} 14... Rae8 {[%clk 0:02:22]} 15. Bf2 {[%clk
0:01:23.6]} 15... Be4 {[%clk 0:02:17.3]} 16. Bxe4 {[%clk 0:00:54]} 16... Rxe4
{[%clk 0:02:18]} 17. Qd3 {[%clk 0:00:55.2]} 17... Qg4 {[%clk 0:02:09.2]} 18.
Rae1 {[%clk 0:00:47]} 18... Rfe8 {[%clk 0:01:53.3]} 19. Rxe4 {[%clk 0:00:41.1]}
19... Rxe4 {[%clk 0:01:51.6]} 20. Bg3 {[%clk 0:00:33.7]} 20... Qe2 {[%clk
0:01:41.9]} 21. Qf3 {[%clk 0:00:31.3]} 21... Qxf3 {[%clk 0:01:39.4]} 22. Rxf3
{[%clk 0:00:19.9]} 22... Re2 {[%clk 0:01:37]} 23. Rf2 {[%clk 0:00:20.1]} 23...
Re1+ {[%clk 0:01:29.8]} 24. Rf1 {[%clk 0:00:21.1]} 24... Rxf1+ {[%clk
0:01:17.9]} 25. Kxf1 {[%clk 0:00:21.7]} 25... Na5 {[%clk 0:01:18.7]} 26. c5
{[%clk 0:00:22.6]} 26... Nc4 {[%clk 0:01:16.6]} 27. cxd6 {[%clk 0:00:13]} 27...
cxd6 {[%clk 0:01:17.3]} 28. d5 {[%clk 0:00:08.1]} 28... Kf7 {[%clk 0:01:14.6]}
29. Ke2 {[%clk 0:00:08.8]} 29... Ke7 {[%clk 0:01:06.4]} 30. Kd3 {[%clk
0:00:08.9]} 30... b5 {[%clk 0:01:05]} 31. Kd4 {[%clk 0:00:05.8]} 31... Kf6
{[%clk 0:00:55.5]} 32. Bf4 {[%clk 0:00:06]} 32... Kf5 {[%clk 0:00:52]} 33. Bc1
{[%clk 0:00:06.3]} 33... g5 {[%clk 0:00:42.6]} 34. h3 {[%clk 0:00:04.6]} 34...
h5 {[%clk 0:00:43.1]} 35. g3 {[%clk 0:00:03.7]} 35... Nb6 {[%clk 0:00:31.3]} 36.
h4 {[%clk 0:00:04]} 36... g4 {[%clk 0:00:17.9]} 37. Bg5 {[%clk 0:00:03.7]} 37...
Nc4 {[%clk 0:00:14.1]} 38. Be7 {[%clk 0:00:03.6]} 38... a6 {[%clk 0:00:12]} 39.
a4 {[%clk 0:00:02.1]} 39... Kg6 {[%clk 0:00:12.6]} 40. axb5 {[%clk 0:00:02.9]}
40... axb5 {[%clk 0:00:13.4]} 41. Bf8 {[%clk 0:00:03.2]} 41... Kf7 {[%clk
0:00:13.9]} 42. Bh6 {[%clk 0:00:04.3]} 42... Ke7 {[%clk 0:00:13.8]} 43. Bg5+
{[%clk 0:00:04.9]} 43... Kf7 {[%clk 0:00:10.5]} 44. Bf4 {[%clk 0:00:04.9]} 44...
Kf6 {[%clk 0:00:10.4]} 45. Ke4 {[%clk 0:00:05.9]} 45... Ke7 {[%clk 0:00:07.7]}
46. Kf5 {[%clk 0:00:05.7]} 46... Nb6 {[%clk 0:00:06.6]} 47. Kg6 {[%clk
0:00:05.5]} 47... Nxd5 {[%clk 0:00:07]} 48. Bg5+ {[%clk 0:00:07.1]} 48... Ke6
{[%clk 0:00:06.5]} 49. Kxh5 {[%clk 0:00:08.6]} 49... Nxc3 {[%clk 0:00:07.1]} 50.
Kxg4 {[%clk 0:00:10.2]} 50... b4 {[%clk 0:00:08]} 51. h5 {[%clk 0:00:10.8]}
51... b3 {[%clk 0:00:07.4]} 52. Bc1 {[%clk 0:00:12.3]} 52... Nd1 {[%clk
0:00:03.1]} 53. Kg5 {[%clk 0:00:07.5]} 53... Kf7 {[%clk 0:00:04.1]} 54. Kf5
{[%clk 0:00:07.1]} 54... b2 {[%clk 0:00:03.8]} 55. Bxb2 {[%clk 0:00:08.5]} 55...
Nxb2 {[%clk 0:00:04.8]} 56. g4 {[%clk 0:00:10]} 56... Nc4 {[%clk 0:00:03.8]} 57.
g5 {[%clk 0:00:10.4]} 57... d5 {[%clk 0:00:05]} 58. g6+ {[%clk 0:00:08.8]} 58...
Kg8 {[%clk 0:00:05.6]} 59. h6 {[%clk 0:00:07]} 59... Nd6+ {[%clk 0:00:05.4]} 60.
Ke5 {[%clk 0:00:06.5]} 60... Ne4 {[%clk 0:00:04.7]} 61. Kxd5 {[%clk 0:00:06.6]}
61... Nf6+ {[%clk 0:00:06]} 62. Ke6 {[%clk 0:00:07.2]} 62... Ng4 {[%clk
0:00:07.3]} 63. h7+ {[%clk 0:00:06.1]} 63... Kg7 {[%clk 0:00:07.8]} 64. h8=Q+
{[%clk 0:00:03.8]} 64... Kxh8 {[%clk 0:00:08.3]} 65. Kf7 {[%clk 0:00:04.3]}
65... Ne5+ {[%clk 0:00:08.3]} 66. Kf6 {[%clk 0:00:03.4]} 66... Nxg6 {[%clk
0:00:09.3]} 1/2-1/2

[Event "*** Titled Tuesday Blitz"]
[Site "Chess.com"]
[Date "2020.02.04"]
[Round "5"]
[White "heyiampotato"]
[Black "EugeneRougon"]
[Result "1/2-1/2"]
[WhiteElo "2476"]
[BlackElo "2724"]
[TimeControl "180+2"]
[EndTime "10:09:49 PST"]
[Termination "Game drawn by stalemate"]

1. d4 {[%clk 0:03:01.9]} 1... d5 {[%clk 0:02:56.1]} 2. c4 {[%clk 0:03:02.8]}
2... c6 {[%clk 0:02:57.3]} 3. Nf3 {[%clk 0:03:03.2]} 3... Nf6 {[%clk 0:02:58.4]}
4. Nbd2 {[%clk 0:03:04]} 4... e6 {[%clk 0:02:38.2]} 5. e3 {[%clk 0:03:03.9]}
5... c5 {[%clk 0:02:37]} 6. b3 {[%clk 0:03:01]} 6... cxd4 {[%clk 0:02:34.2]} 7.
exd4 {[%clk 0:03:01.5]} 7... Nc6 {[%clk 0:02:32.7]} 8. Bb2 {[%clk 0:02:58.3]}
8... Be7 {[%clk 0:02:32.9]} 9. a3 {[%clk 0:02:56.9]} 9... a5 {[%clk 0:02:28.5]}
10. Bd3 {[%clk 0:02:48.2]} 10... O-O {[%clk 0:02:29.2]} 11. O-O {[%clk
0:02:48.7]} 11... b6 {[%clk 0:02:27]} 12. Rc1 {[%clk 0:02:43.7]} 12... Bb7
{[%clk 0:02:27.9]} 13. Qe2 {[%clk 0:02:44.4]} 13... Rc8 {[%clk 0:02:16.2]} 14.
Rfe1 {[%clk 0:02:34.7]} 14... Bd6 {[%clk 0:02:13.6]} 15. Nf1 {[%clk 0:02:32.1]}
15... dxc4 {[%clk 0:02:05.3]} 16. bxc4 {[%clk 0:02:28.9]} 16... Ne7 {[%clk
0:01:59.6]} 17. Ng3 {[%clk 0:02:13.3]} 17... Ng6 {[%clk 0:01:57]} 18. Bxg6
{[%clk 0:01:56.2]} 18... hxg6 {[%clk 0:01:56.5]} 19. Ne5 {[%clk 0:01:54.8]}
19... Qc7 {[%clk 0:01:30.3]} 20. h4 {[%clk 0:01:00.4]} 20... Bxe5 {[%clk
0:00:55.8]} 21. Qxe5 {[%clk 0:00:59.6]} 21... Qxe5 {[%clk 0:00:49.2]} 22. Rxe5
{[%clk 0:00:59.4]} 22... Ba6 {[%clk 0:00:46.3]} 23. c5 {[%clk 0:00:54.2]} 23...
Nd7 {[%clk 0:00:36.8]} 24. Re3 {[%clk 0:00:43.5]} 24... bxc5 {[%clk 0:00:36.5]}
25. dxc5 {[%clk 0:00:44.2]} 25... Rxc5 {[%clk 0:00:35.8]} 26. Rxc5 {[%clk
0:00:41.4]} 26... Nxc5 {[%clk 0:00:36.9]} 27. Bc3 {[%clk 0:00:39.8]} 27... a4
{[%clk 0:00:28.2]} 28. Bb4 {[%clk 0:00:40.4]} 28... Rc8 {[%clk 0:00:29.4]} 29.
Rc3 {[%clk 0:00:38.6]} 29... Nd3 {[%clk 0:00:26.3]} 30. Rxc8+ {[%clk 0:00:39]}
30... Bxc8 {[%clk 0:00:28.2]} 31. Bd6 {[%clk 0:00:39.8]} 31... f6 {[%clk
0:00:22.7]} 32. Ne4 {[%clk 0:00:32.8]} 32... Nb2 {[%clk 0:00:20.5]} 33. Bb4
{[%clk 0:00:24.5]} 33... Nd3 {[%clk 0:00:21.1]} 34. Bd6 {[%clk 0:00:25.5]} 34...
Nb2 {[%clk 0:00:21.1]} 35. Bb4 {[%clk 0:00:26.1]} 35... e5 {[%clk 0:00:18.5]}
36. Nc3 {[%clk 0:00:24.5]} 36... Be6 {[%clk 0:00:17.9]} 37. f3 {[%clk
0:00:21.2]} 37... Bb3 {[%clk 0:00:18.1]} 38. Bd6 {[%clk 0:00:10]} 38... Kf7
{[%clk 0:00:19.1]} 39. Kf1 {[%clk 0:00:10]} 39... Nc4 {[%clk 0:00:16.8]} 40. Bb4
{[%clk 0:00:09.3]} 40... Ne3+ {[%clk 0:00:18]} 41. Kf2 {[%clk 0:00:10.2]} 41...
Nc2 {[%clk 0:00:19.1]} 42. Bc5 {[%clk 0:00:10.6]} 42... Nd4 {[%clk 0:00:18.3]}
43. Ne2 {[%clk 0:00:07.2]} 43... Ne6 {[%clk 0:00:15.5]} 44. Bb4 {[%clk
0:00:07.4]} 44... Ke8 {[%clk 0:00:16.2]} 45. Ke3 {[%clk 0:00:08.5]} 45... Kd7
{[%clk 0:00:17.3]} 46. g3 {[%clk 0:00:09.4]} 46... Kc6 {[%clk 0:00:15.5]} 47.
Nc3 {[%clk 0:00:09.9]} 47... g5 {[%clk 0:00:13.5]} 48. hxg5 {[%clk 0:00:09.3]}
48... Nxg5 {[%clk 0:00:15.4]} 49. f4 {[%clk 0:00:10.3]} 49... exf4+ {[%clk
0:00:15.1]} 50. gxf4 {[%clk 0:00:12.2]} 50... Ne6 {[%clk 0:00:13.8]} 51. f5
{[%clk 0:00:12.6]} 51... Nc5 {[%clk 0:00:07.1]} 52. Kd4 {[%clk 0:00:13.4]} 52...
Nd7 {[%clk 0:00:07.6]} 53. Ne2 {[%clk 0:00:08.8]} 53... Bc2 {[%clk 0:00:08.3]}
54. Ng3 {[%clk 0:00:10]} 54... Bb1 {[%clk 0:00:06.1]} 55. Be7 {[%clk 0:00:07.7]}
55... Kc7 {[%clk 0:00:05.3]} 56. Bb4 {[%clk 0:00:08.5]} 56... Kc6 {[%clk
0:00:06.4]} 57. Be7 {[%clk 0:00:09.3]} 57... Ne5 {[%clk 0:00:06.7]} 58. Bf8
{[%clk 0:00:08.1]} 58... Nf3+ {[%clk 0:00:06.4]} 59. Ke3 {[%clk 0:00:08.6]}
59... Nh4 {[%clk 0:00:06.9]} 60. Kf4 {[%clk 0:00:08.5]} 60... g5+ {[%clk
0:00:06.2]} 61. Kg4 {[%clk 0:00:04.8]} 61... Bc2 {[%clk 0:00:05.7]} 62. Be7
{[%clk 0:00:05.7]} 62... Bd1+ {[%clk 0:00:06.8]} 63. Kh3 {[%clk 0:00:07.2]}
63... Bc2 {[%clk 0:00:05.9]} 64. Bxf6 {[%clk 0:00:07.6]} 64... Bxf5+ {[%clk
0:00:06.3]} 65. Nxf5 {[%clk 0:00:07.9]} 65... Nxf5 {[%clk 0:00:08.2]} 66. Bxg5
{[%clk 0:00:09.7]} 66... Kd5 {[%clk 0:00:09.6]} 67. Kg4 {[%clk 0:00:10.4]} 67...
Nd4 {[%clk 0:00:11.2]} 68. Be7 {[%clk 0:00:10.5]} 68... Kc4 {[%clk 0:00:11.8]}
69. Kf4 {[%clk 0:00:11.8]} 69... Nc2 {[%clk 0:00:12.9]} 70. Ke4 {[%clk
0:00:11.9]} 70... Kb3 {[%clk 0:00:14.2]} 71. Kd3 {[%clk 0:00:12.5]} 71... Nxa3
{[%clk 0:00:15.4]} 72. Bxa3 {[%clk 0:00:13]} 72... Kxa3 {[%clk 0:00:17.3]} 73.
Kc3 {[%clk 0:00:14.6]} 73... Ka2 {[%clk 0:00:18.6]} 74. Kc2 {[%clk 0:00:16]}
74... a3 {[%clk 0:00:20.5]} 75. Kc1 {[%clk 0:00:16.2]} 75... Ka1 {[%clk
0:00:22.4]} 76. Kc2 {[%clk 0:00:17.4]} 76... a2 {[%clk 0:00:24.3]} 77. Kc1
{[%clk 0:00:18.3]} 1/2-1/2

[Event "*** Titled Tuesday Blitz"]
[Site "Chess.com"]
[Date "2020.02.04"]
[Round "5"]
[White "AtabayevSaparmyrat"]
[Black "wonderfultime"]
[Result "1-0"]
[WhiteElo "2810"]
[BlackElo "2963"]
[TimeControl "180+2"]
[EndTime "10:09:51 PST"]
[Termination "AtabayevSaparmyrat won by resignation"]

1. e4 {[%clk 0:02:58.8]} 1... c5 {[%clk 0:02:56.6]} 2. Nf3 {[%clk 0:02:59.6]}
2... Nf6 {[%clk 0:02:57.5]} 3. Nc3 {[%clk 0:03:00.1]} 3... d6 {[%clk 0:02:58.2]}
4. d4 {[%clk 0:03:01.3]} 4... cxd4 {[%clk 0:03:00.1]} 5. Nxd4 {[%clk 0:03:01.6]}
5... g6 {[%clk 0:03:01.5]} 6. Be3 {[%clk 0:02:54.5]} 6... Bg7 {[%clk 0:03:02.8]}
7. f3 {[%clk 0:02:55.1]} 7... O-O {[%clk 0:03:03.3]} 8. Bc4 {[%clk 0:02:42.1]}
8... Nc6 {[%clk 0:03:04.6]} 9. Qd2 {[%clk 0:02:42.9]} 9... Bd7 {[%clk
0:03:05.9]} 10. Bb3 {[%clk 0:02:41.4]} 10... Na5 {[%clk 0:02:57.8]} 11. O-O-O
{[%clk 0:02:39.3]} 11... Rb8 {[%clk 0:02:55]} 12. Bh6 {[%clk 0:02:32.7]} 12...
b5 {[%clk 0:02:55]} 13. h4 {[%clk 0:02:29.4]} 13... Nc4 {[%clk 0:02:36.4]} 14.
Bxc4 {[%clk 0:02:17]} 14... bxc4 {[%clk 0:02:38.3]} 15. Bxg7 {[%clk 0:02:14.4]}
15... Kxg7 {[%clk 0:02:36.9]} 16. h5 {[%clk 0:02:15.7]} 16... Qb6 {[%clk
0:01:36.5]} 17. b3 {[%clk 0:02:14.7]} 17... cxb3 {[%clk 0:01:38.4]} 18. axb3
{[%clk 0:02:12.8]} 18... Qa5 {[%clk 0:01:01.8]} 19. Kb2 {[%clk 0:01:50.8]} 19...
g5 {[%clk 0:01:02.8]} 20. Nf5+ {[%clk 0:01:33.6]} 20... Bxf5 {[%clk 0:01:03.8]}
21. Qxg5+ {[%clk 0:01:33.5]} 21... Kh8 {[%clk 0:01:05.1]} 22. Qxf5 {[%clk
0:01:28.9]} 22... Qb4 {[%clk 0:00:53.6]} 23. Nd5 {[%clk 0:01:04.3]} 23... Nxd5
{[%clk 0:00:53.6]} 24. Qxd5 {[%clk 0:01:06.2]} 24... f6 {[%clk 0:00:51.1]} 25.
Qd4 {[%clk 0:01:04.2]} 25... Qb7 {[%clk 0:00:51.3]} 26. Ra1 {[%clk 0:01:00.8]}
26... a6 {[%clk 0:00:52.6]} 27. Ra4 {[%clk 0:01:00.3]} 27... Rfc8 {[%clk
0:00:52.4]} 28. Rha1 {[%clk 0:01:01.5]} 28... Rc6 {[%clk 0:00:50.2]} 29. Rc4
{[%clk 0:01:00.3]} 29... Rb6 {[%clk 0:00:48.3]} 30. Qc3 {[%clk 0:00:55.4]} 30...
Qd7 {[%clk 0:00:43.8]} 31. Rc7 {[%clk 0:00:54.4]} 31... Qe6 {[%clk 0:00:45.2]}
32. h6 {[%clk 0:00:52.3]} 32... Kg8 {[%clk 0:00:20.1]} 33. g4 {[%clk 0:00:45.9]}
33... Kf7 {[%clk 0:00:20.5]} 34. g5 {[%clk 0:00:45.9]} 34... Qe5 {[%clk
0:00:14.8]} 35. gxf6 {[%clk 0:00:42]} 35... Qxc3+ {[%clk 0:00:12.1]} 36. Kxc3
{[%clk 0:00:42.9]} 36... Kxf6 {[%clk 0:00:14]} 37. Rg1 {[%clk 0:00:42.1]} 37...
Rf8 {[%clk 0:00:13.4]} 38. f4 {[%clk 0:00:36.5]} 38... Rf7 {[%clk 0:00:09.9]}
39. Kd4 {[%clk 0:00:33.5]} 39... e5+ {[%clk 0:00:11]} 40. fxe5+ {[%clk
0:00:31.5]} 40... dxe5+ {[%clk 0:00:12.6]} 41. Kc5 {[%clk 0:00:30.9]} 41...
Rxc7+ {[%clk 0:00:11.6]} 42. Kxb6 {[%clk 0:00:31.8]} 42... Rxc2 {[%clk
0:00:13.5]} 43. Kxa6 {[%clk 0:00:30.3]} 43... Rb2 {[%clk 0:00:13.3]} 44. Rg3
{[%clk 0:00:30]} 44... Re2 {[%clk 0:00:12]} 45. b4 {[%clk 0:00:30.7]} 45... Rxe4
{[%clk 0:00:12.5]} 46. Rb3 {[%clk 0:00:30]} 46... Ke6 {[%clk 0:00:06.3]} 47. b5
{[%clk 0:00:28.7]} 47... Ra4+ {[%clk 0:00:07.9]} 48. Kb7 {[%clk 0:00:22.3]}
48... Kd6 {[%clk 0:00:08.9]} 49. b6 {[%clk 0:00:23]} 49... e4 {[%clk 0:00:10.2]}
50. Rg3 {[%clk 0:00:20.3]} 50... Ra1 {[%clk 0:00:04.7]} 51. Kb8 {[%clk 0:00:19]}
51... Rb1 {[%clk 0:00:04.7]} 52. b7 {[%clk 0:00:19.5]} 52... Kc6 {[%clk
0:00:06.1]} 53. Rg7 {[%clk 0:00:16.3]} 53... e3 {[%clk 0:00:07.1]} 54. Rc7+
{[%clk 0:00:15.2]} 54... Kd6 {[%clk 0:00:07.8]} 55. Rc2 {[%clk 0:00:16.4]} 55...
Kd5 {[%clk 0:00:05.7]} 56. Kc8 {[%clk 0:00:16.2]} 56... Ke4 {[%clk 0:00:06.2]}
57. b8=Q {[%clk 0:00:16.4]} 57... Rxb8+ {[%clk 0:00:07.1]} 58. Kxb8 {[%clk
0:00:18.3]} 58... Kd3 {[%clk 0:00:09]} 59. Rc1 {[%clk 0:00:14.5]} 59... e2
{[%clk 0:00:10.4]} 60. Kc7 {[%clk 0:00:15.3]} 60... Kd2 {[%clk 0:00:10.9]} 61.
Ra1 {[%clk 0:00:15.5]} 1-0

[Event "*** Titled Tuesday Blitz"]
[Site "Chess.com"]
[Date "2020.02.04"]
[Round "5"]
[White "VALPARAISO37"]
[Black "Reality-Stone"]
[Result "0-1"]
[WhiteElo "2225"]
[BlackElo "2477"]
[TimeControl "180+2"]
[EndTime "10:10:02 PST"]
[Termination "Reality-Stone won on time"]

1. d4 {[%clk 0:03:01.9]} 1... Nf6 {[%clk 0:02:57.3]} 2. c4 {[%clk 0:03:02.9]}
2... e6 {[%clk 0:02:56.6]} 3. Nc3 {[%clk 0:03:03.5]} 3... Bb4 {[%clk 0:02:55.6]}
4. a3 {[%clk 0:03:04.5]} 4... Bxc3+ {[%clk 0:02:55.9]} 5. bxc3 {[%clk
0:03:06.1]} 5... d5 {[%clk 0:02:57.3]} 6. e3 {[%clk 0:03:07.1]} 6... O-O {[%clk
0:02:57.4]} 7. Bd3 {[%clk 0:03:06.8]} 7... b6 {[%clk 0:02:55.7]} 8. Ne2 {[%clk
0:03:06.1]} 8... Ba6 {[%clk 0:02:55.3]} 9. cxd5 {[%clk 0:03:04.2]} 9... exd5
{[%clk 0:02:57.2]} 10. Bxa6 {[%clk 0:03:03.5]} 10... Nxa6 {[%clk 0:02:59.1]} 11.
Qd3 {[%clk 0:03:04.4]} 11... Qc8 {[%clk 0:02:58.6]} 12. f3 {[%clk 0:03:03.5]}
12... c5 {[%clk 0:02:58.9]} 13. O-O {[%clk 0:03:02.8]} 13... Nc7 {[%clk
0:02:57.4]} 14. e4 {[%clk 0:03:02.1]} 14... dxe4 {[%clk 0:02:55.6]} 15. fxe4
{[%clk 0:03:02.5]} 15... cxd4 {[%clk 0:02:56.8]} 16. cxd4 {[%clk 0:03:02.2]}
16... Ne6 {[%clk 0:02:57.7]} 17. Rxf6 {[%clk 0:02:48.3]} 17... gxf6 {[%clk
0:02:59.6]} 18. Ng3 {[%clk 0:02:42.9]} 18... Rd8 {[%clk 0:02:55.7]} 19. Nf5
{[%clk 0:02:41.4]} 19... Qc7 {[%clk 0:02:46.2]} 20. d5 {[%clk 0:02:37.4]} 20...
Rac8 {[%clk 0:02:36.6]} 21. Bb2 {[%clk 0:02:36.9]} 21... Qc2 {[%clk 0:02:32.7]}
22. Qg3+ {[%clk 0:02:35.4]} 22... Kf8 {[%clk 0:02:30.5]} 23. Bxf6 {[%clk
0:02:31.2]} 23... Qxe4 {[%clk 0:02:28.5]} 24. Bg7+ {[%clk 0:02:24.7]} 24... Ke8
{[%clk 0:02:18]} 25. dxe6 {[%clk 0:01:52.1]} 25... Qxf5 {[%clk 0:02:15.7]} 26.
exf7+ {[%clk 0:01:51.8]} 26... Qxf7 {[%clk 0:02:14.2]} 27. Re1+ {[%clk 0:01:44]}
27... Kd7 {[%clk 0:02:14.4]} 28. Qg4+ {[%clk 0:01:39.8]} 28... Kc6 {[%clk
0:02:11.5]} 29. Re6+ {[%clk 0:01:33.7]} 29... Kb7 {[%clk 0:02:03.1]} 30. Qe4+
{[%clk 0:01:32]} 30... Kb8 {[%clk 0:01:55.1]} 31. Be5+ {[%clk 0:01:30.9]} 31...
Rc7 {[%clk 0:01:56]} 32. Rd6 {[%clk 0:01:18.8]} 32... Rdc8 {[%clk 0:01:41.4]}
33. Rc6 {[%clk 0:01:12.5]} 33... Qd7 {[%clk 0:01:35.1]} 34. h3 {[%clk
0:01:10.2]} 34... h5 {[%clk 0:01:22.7]} 35. a4 {[%clk 0:01:09.4]} 35... h4
{[%clk 0:01:03]} 36. Bd6 {[%clk 0:01:01.9]} 36... a6 {[%clk 0:00:40.6]} 37.
Rxb6+ {[%clk 0:00:52.3]} 37... Ka7 {[%clk 0:00:41.5]} 38. Qd4 {[%clk 0:00:47.4]}
38... Rc4 {[%clk 0:00:32.8]} 39. Qf2 {[%clk 0:00:38.2]} 39... Rc2 {[%clk
0:00:27]} 40. Qd4 {[%clk 0:00:37]} 40... R2c4 {[%clk 0:00:21.7]} 41. Qd5 {[%clk
0:00:36.5]} 41... R4c6 {[%clk 0:00:17.8]} 42. Rxc6 {[%clk 0:00:31.7]} 42... Qxc6
{[%clk 0:00:19.7]} 43. Qd4+ {[%clk 0:00:31]} 43... Qb6 {[%clk 0:00:20.8]} 44.
Qxb6+ {[%clk 0:00:29.5]} 44... Kxb6 {[%clk 0:00:22.7]} 45. Be7 {[%clk
0:00:30.9]} 45... Ka5 {[%clk 0:00:23.5]} 46. Bxh4 {[%clk 0:00:31.3]} 46... Kxa4
{[%clk 0:00:24.7]} 47. Bf6 {[%clk 0:00:32.8]} 47... Kb5 {[%clk 0:00:25.8]} 48.
g4 {[%clk 0:00:32.6]} 48... a5 {[%clk 0:00:27.1]} 49. Kg2 {[%clk 0:00:33.2]}
49... Kc5 {[%clk 0:00:26.1]} 50. h4 {[%clk 0:00:33.4]} 50... Kd5 {[%clk
0:00:27.1]} 51. Kg3 {[%clk 0:00:34]} 51... Ke6 {[%clk 0:00:27.8]} 52. Bb2 {[%clk
0:00:32.7]} 52... Rc2 {[%clk 0:00:26.6]} 53. Bh8 {[%clk 0:00:32.2]} 53... a4
{[%clk 0:00:27.8]} 54. h5 {[%clk 0:00:32.9]} 54... a3 {[%clk 0:00:27.6]} 55. Kh4
{[%clk 0:00:32.9]} 55... a2 {[%clk 0:00:24]} 56. h6 {[%clk 0:00:33.7]} 56... Kf7
{[%clk 0:00:24.5]} 57. Kg5 {[%clk 0:00:28.9]} 57... Rc5+ {[%clk 0:00:21.5]} 58.
Kh4 {[%clk 0:00:26.2]} 58... Kg6 {[%clk 0:00:22.6]} 59. Bg7 {[%clk 0:00:23.4]}
59... Rc1 {[%clk 0:00:23.3]} 60. Bb2 {[%clk 0:00:16.6]} 60... a1=Q {[%clk
0:00:23.6]} 61. h7 {[%clk 0:00:16.7]} 61... Rh1+ {[%clk 0:00:23.6]} 62. Kg3
{[%clk 0:00:16.3]} 62... Qg1+ {[%clk 0:00:24.5]} 63. Kf4 {[%clk 0:00:15.9]}
63... Qf2+ {[%clk 0:00:24.4]} 64. Ke4 {[%clk 0:00:15.2]} 64... Re1+ {[%clk
0:00:25.6]} 65. Kd5 {[%clk 0:00:14.8]} 65... Qd2+ {[%clk 0:00:26.2]} 66. Kc6
{[%clk 0:00:13.2]} 66... Qc2+ {[%clk 0:00:25.9]} 67. Bc3 {[%clk 0:00:13.8]}
67... Qxc3+ {[%clk 0:00:26.7]} 68. Kd5 {[%clk 0:00:15.7]} 68... Qd3+ {[%clk
0:00:27.5]} 0-1